lending/lending_fUSD_20251114
["ID","MTS","AMOUNT","RATE_DAILY","PERIOD"]
[393930156,1763102468254,-10000.01,0.00016786,2]
[393930157,1763102468673,-10000.01,0.00016786,2]
[393930158,1763102473386,-1672.56362334,0.00016786,2]
[393930159,1763102473421,-6654.88275332,0.00016786,2]
[393930160,1763102475920,565.12424115,0.00016785,2]
[393930161,1763102476397,565.12424115,0.00016785,2]
[393930162,1763102476527,565.12424115,0.00016785,2]
[393930163,1763102481959,188.96749093,0.00016785,2]
[393930164,1763102482033,565.12424115,0.00016785,2]
[393930165,1763102487478,565.12424115,0.00016785,2]
[393930166,1763102488499,565.12424115,0.00016785,2]
[393930167,1763102488540,565.12424115,0.00016785,2]
[393930168,1763102488579,565.12424115,0.00016785,2]
[393930169,1763102488610,176.81248374,0.00016785,2]
[393930170,1763102488644,565.12424115,0.00016785,2]
[393930171,1763102488675,565.12424115,0.00016785,2]
[393930172,1763102488708,565.12424115,0.00016785,2]
[393930173,1763102488738,565.12424115,0.00016785,2]
[393930174,1763102488769,565.12424115,0.00016785,2]
[393930175,1763102488806,565.12424115,0.00016785,2]
[393930176,1763102488840,565.12424115,0.00016785,2]
[393930177,1763102488873,565.12424115,0.00016785,2]
[393930178,1763102488905,565.12424115,0.00016785,2]
[393930179,1763102488940,565.12424115,0.00016785,2]
[393930180,1763102488971,565.12424115,0.00016785,2]
[393930181,1763102489003,565.12424115,0.00016785,2]
[393930182,1763102489041,27.11792578,0.00016785,2]
[393930183,1763102489068,538.00631537,0.00016785,2]
[393930184,1763102489103,565.12424115,0.00016785,2]
[393930185,1763102489139,565.12424115,0.00016785,2]
[393930186,1763102489176,565.12424115,0.00016785,2]
[393930187,1763102489211,565.12424115,0.00016785,2]
[393930188,1763102489253,500.0,0.00016785,2]
[393930189,1763102489291,565.12424115,0.00016785,2]
[393930190,1763102489328,565.12424115,0.00016785,2]
[393930191,1763102489367,565.12424115,0.00016785,2]
[393930192,1763102489591,565.12424115,0.00016785,2]
[393930193,1763102489663,565.12424115,0.00016785,2]
[393930194,1763102489697,565.12424115,0.00016785,2]
[393930195,1763102489734,286.04700063,0.00016785,2]
[393930196,1763102489966,565.12424115,0.00016785,2]
[393930197,1763102490002,500.0,0.00016785,2]
[393930198,1763102490035,565.12424115,0.00016785,2]
[393930199,1763102490067,565.12424115,0.00016785,2]
[393930200,1763102490099,500.0,0.00016785,2]
[393930201,1763102490131,329.34154905,0.00016785,2]
[393930202,1763102490169,170.65845095,0.00016785,2]
[393930203,1763102490211,500.0,0.00016785,2]
[393930204,1763102490243,500.0,0.00016785,2]
[393930205,1763102490287,500.0,0.00016785,2]
[393930206,1763102490320,500.0,0.00016785,2]
[393930207,1763102490353,500.0,0.00016785,2]
[393930208,1763102490390,500.0,0.00016785,2]
[393930209,1763102490424,500.0,0.00016785,2]
[393930210,1763102490456,500.0,0.00016785,2]
[393930211,1763102490491,500.0,0.00016785,2]
[393930212,1763102490529,565.12424115,0.00016785,2]
[393930213,1763102490570,500.0,0.00016785,2]
[393930214,1763102490603,500.0,0.00016785,2]
[393930215,1763102490637,500.0,0.00016785,2]
[393930216,1763102490675,500.0,0.00016785,2]
[393930217,1763102490709,500.0,0.00016785,2]
[393930218,1763102490742,500.0,0.00016785,2]
[393930219,1763102490777,500.0,0.00016785,2]
[393930220,1763102490809,500.0,0.00016785,2]
[393930221,1763102490845,565.12424115,0.00016785,2]
[393930222,1763102490882,199.10306675,0.00016785,2]
[393930223,1763102490908,366.0211744,0.00016785,2]
[393930224,1763102490943,500.0,0.00016785,2]
[393930225,1763102490975,565.12424115,0.00016785,2]
[393930226,1763102491015,277.89872544,0.00016785,2]
[393930227,1763102491043,222.10127456,0.00016785,2]
[393930228,1763102491075,500.0,0.00016785,2]
[393930229,1763102491106,500.0,0.00016785,2]
[393930230,1763102491138,500.0,0.00016785,2]
[393930231,1763102491170,500.0,0.00016785,2]
[393930232,1763102491221,500.0,0.00016785,2]
[393930233,1763102491252,500.0,0.00016785,2]
[393930234,1763102491282,565.12424115,0.00016785,2]
[393930235,1763102491317,500.0,0.00016785,2]
[393930236,1763102491352,500.0,0.00016785,2]
[393930237,1763102510790,291.66150378,0.00016785,2]
[393930238,1763102514741,175.31,0.00030137,120]
[393930243,1763102585340,3489.97756496,0.00016786,2]
[393930244,1763102585369,10000.01,0.00016786,2]
[393930245,1763102585396,10000.01,0.00016786,2]
[393930246,1763102585420,10000.01,0.00016786,2]
[393930247,1763102585447,10000.01,0.00016786,2]
[393930248,1763102585473,10000.01,0.00016786,2]
[393930249,1763102585498,10000.01,0.00016786,2]
[393930250,1763102587547,-164.59879763,0.00016786,2]
[393930251,1763102589924,-280.32726495,0.00016786,2]
[393930252,1763102595475,-8304.63727655,0.00016786,2]
[393930253,1763102595597,-10000.01,0.00016786,2]
[393930254,1763102595751,-10000.01,0.00016786,2]
[393930255,1763102595968,-434.82311721,0.00016786,2]
[393930256,1763102596003,-9130.36376558,0.00016786,2]
[393930257,1763102597546,-10000.01,0.00016786,2]
[393930258,1763102597653,-10000.01,0.00016786,2]
[393930259,1763102597756,-10000.01,0.00016786,2]
[393930260,1763102597875,-10000.01,0.00016786,2]
[393930261,1763102597997,-10000.01,0.00016786,2]
[393930262,1763102598132,-10000.01,0.00016786,2]
[393930263,1763102600613,-10000.01,0.00016786,2]
[393930264,1763102600721,-10000.01,0.00016786,2]
[393930265,1763102600851,-10000.01,0.00016786,2]
[393930266,1763102600959,-10000.01,0.00016786,2]
[393930267,1763102606830,-10000.01,0.00016786,2]
[393930268,1763102607047,-10000.01,0.00016786,2]
[393930269,1763102607201,-10000.01,0.00016786,2]
[393930270,1763102607354,-10000.01,0.00016786,2]
[393930271,1763102607478,-10000.01,0.00016786,2]
[393930272,1763102615710,-10000.01,0.00016786,2]
[393930273,1763102615807,-10000.01,0.00016786,2]
[393930274,1763102615945,-10000.01,0.00016786,2]
[393930275,1763102616072,-10000.01,0.00016786,2]
[393930276,1763102616189,-10000.01,0.00016786,2]
[393930277,1763102625029,-654.07,0.00016776,3]
[393930278,1763102625073,-8691.87,0.00016786,2]
[393930279,1763102625262,-10000.01,0.00016786,2]
[393930280,1763102625386,-10000.01,0.00016786,2]
[393930281,1763102630871,-10000.01,0.00016786,2]
[393930282,1763102631011,-10000.01,0.00016786,2]
[393930283,1763102631142,-10000.01,0.00016786,2]
[393930284,1763102631258,-10000.01,0.00016786,2]
[393930285,1763102652990,6359.08,0.00015986,2]
[393930286,1763102655419,248.63446553,0.000164,2]
[393930287,1763102662046,1706.164194,0.00016488,2]
[393930288,1763102675253,-260.34968263,0.000167,2]
[393930289,1763102678560,-197.10971327,0.000167,2]
[393930290,1763102680135,-176.8,0.000167,2]
[393930291,1763102684865,-230.91790741,0.000167,2]
[393930292,1763102686334,-198.6637194,0.000167,2]
[393930293,1763102692298,561.31718285,0.00041091,30]
[393930294,1763102725475,500.0,0.00016686,2]
[393930295,1763102742512,232.282002,0.00016616,2]
[393930296,1763102764720,-25.4158632,0.000167,2]
[393930297,1763102764744,-241.57880277,0.000167,2]
[393930298,1763102766876,-155.39013836,0.000167,2]
[393930299,1763102767742,150.0,0.000162,2]
[393930300,1763102767806,150.0,0.00016364,2]
[393930301,1763102767876,150.0,0.00016527,2]
[393930304,1763102787290,-150.0,0.00016691,2]
[393930305,1763102787318,-103.71217548,0.000167,2]
[393930306,1763102787347,-300.0,0.00016785,2]
[393930307,1763102787376,-550.0,0.00016785,2]
[393930308,1763102787402,-300.0,0.00016785,2]
[393930309,1763102787431,-805.0,0.00016786,2]
[393930310,1763102787459,-678.64425668,0.00016786,2]
[393930311,1763102787481,-150.0,0.00016786,2]
[393930312,1763102787491,-103.71217548,0.00016786,2]
[393930313,1763102787502,-300.0,0.00016786,2]
[393930314,1763102787513,-550.0,0.00016786,2]
[393930315,1763102787523,-300.0,0.00016786,2]
[393930316,1763102787534,-805.0,0.00016786,2]
[393930317,1763102787545,-678.64425668,0.00016786,2]
[393930318,1763102787555,-42225.28713568,0.00016786,2]
[393930321,1763102807495,156.27506629,0.00016686,2]
[393930322,1763102809527,500.0,0.00015943,2]
[393930323,1763102824775,-341.17944755,0.0001672,2]
[393930350,1763102842334,9500.01,0.0001593,2]
[393930351,1763102842358,10000.01,0.0001593,2]
[393930352,1763102842384,10000.01,0.0001593,2]
[393930353,1763102842407,4587.65,0.0001593,2]
[393930355,1763102847026,500.0,0.00041091,30]
[393930356,1763102847312,500.0,0.00041091,30]
[393930357,1763102847554,500.0,0.00041091,30]
[393930358,1763102847796,500.0,0.00041091,30]
[393930359,1763102848059,500.0,0.00041091,30]
[393930360,1763102848320,500.0,0.00041091,30]
[393930361,1763102848555,500.0,0.00041091,30]
[393930362,1763102848799,500.0,0.00041091,30]
[393930363,1763102849045,500.0,0.00041091,30]
[393930364,1763102849514,500.0,0.00041091,30]
[393930365,1763102849583,500.0,0.00041091,30]
[393930366,1763102849832,500.0,0.00041091,30]
[393930367,1763102850104,500.0,0.00041091,30]
[393930368,1763102850344,500.0,0.00041091,30]
[393930369,1763102850585,500.0,0.00041091,30]
[393930370,1763102850881,500.0,0.00041091,30]
[393930371,1763102851111,500.0,0.00041091,30]
[393930372,1763102851345,500.0,0.00041091,30]
[393930373,1763102851599,500.0,0.00041091,30]
[393930374,1763102851831,509.22802409,0.00041091,30]
[393930375,1763102854762,-225.00544772,0.000167,2]
[393930376,1763102854785,-54.1073551,0.0001672,2]
[393930407,1763102895161,166.66,0.0001512,2]
[393930408,1763102895363,166.66,0.00015438,2]
[393930409,1763102895581,166.66,0.00015756,2]
[393930410,1763102895814,166.66,0.00016074,2]
[393930411,1763102896020,166.66,0.00016393,2]
[393930412,1763102896296,500.0,0.000166,2]
[393930414,1763102899849,-166.66,0.00016711,2]
[393930415,1763102899873,-43.9088599,0.0001672,2]
[393930418,1763102911191,271.17541764,0.00041091,30]
[393930422,1763102915290,-241.56188919,0.000167,2]
[393930423,1763102915644,150.0,0.00015902,2]
[393930426,1763102919849,-168.63131763,0.000167,2]
[393930428,1763102922239,-174.93611104,0.000167,2]
[393930429,1763102928308,-240.11061844,0.000167,2]
[393930432,1763102932958,-163.68527077,0.000167,2]
[393930434,1763102935413,-224.40333237,0.000167,2]
[393930435,1763102936971,-244.83522882,0.000167,2]
[393930436,1763102938498,-237.49216763,0.000167,2]
[393930439,1763102940033,-194.44334265,0.000167,2]
[393930440,1763102941490,-168.63131763,0.000167,2]
[393930441,1763102945799,-160.26215429,0.000167,2]
[393930443,1763102947933,-215.33977821,0.000167,2]
[393930444,1763102949527,-195.0,0.000167,2]
[393930447,1763102951068,-160.76297548,0.000167,2]
[393930448,1763102953757,-275.7841514,0.000167,2]
[393930449,1763102955829,162.45105664,0.0001662,2]
[393930450,1763102956635,-217.4887708,0.000167,2]
[393930452,1763102959284,-165.30978099,0.000167,2]
[393930454,1763102961574,-151.0,0.000167,2]
[393930456,1763102966757,-369.44081654,0.000167,2]
[393930458,1763102970747,-503.24610906,0.000167,2]
[393930460,1763102974662,-235.83628921,0.000167,2]
[393930462,1763102977146,-304.75124917,0.000167,2]
[393930466,1763102982872,-170.27333368,0.000167,2]
[393930469,1763102986197,-319.93358709,0.000167,2]
[393930523,1763103031672,-71.64069049,0.000167,2]
[393930526,1763103031683,-47.69704745,0.0001672,2]
[393930528,1763103031693,-152.70966658,0.00016753,2]
[393930531,1763103031704,-300.0,0.00016753,2]
[393930533,1763103031714,-500.0,0.00016773,2]
[393930535,1763103031726,-279.57813048,0.00016773,2]
[393930536,1763103031741,-220.42186952,0.00016773,2]
[393930537,1763103031751,-262.56063048,0.00016773,2]
[393930538,1763103031763,-237.43936952,0.00016773,2]
[393930539,1763103031774,-500.0,0.00016773,2]
[393930540,1763103031784,-500.0,0.00016773,2]
[393930541,1763103031795,-500.0,0.00016773,2]
[393930542,1763103031806,-1200.0,0.00016784,2]
[393930543,1763103031816,-550.0,0.00016784,2]
[393930544,1763103031827,-300.0,0.00016784,2]
[393930545,1763103031838,-1200.0,0.00016784,2]
[393930546,1763103031854,-300.0,0.00016784,2]
[393930547,1763103031864,-1674.4905,0.00016785,2]
[393930548,1763103031875,-991.8738061,0.00016785,2]
[393930549,1763103031887,-500.0,0.00016785,2]
[393930550,1763103031898,-500.0,0.00016785,2]
[393930551,1763103031910,-500.0,0.00016785,2]
[393930552,1763103031921,-500.0,0.00016785,2]
[393930553,1763103031931,-500.0,0.00016785,2]
[393930554,1763103031943,-500.0,0.00016785,2]
[393930555,1763103031954,-500.0,0.00016785,2]
[393930556,1763103031964,-500.0,0.00016785,2]
[393930557,1763103031975,-500.0,0.00016785,2]
[393930558,1763103031985,-500.0,0.00016785,2]
[393930559,1763103031995,-500.0,0.00016785,2]
[393930560,1763103032005,-500.0,0.00016785,2]
[393930561,1763103032016,-500.0,0.00016785,2]
[393930562,1763103032026,-479.73500062,0.00016785,2]
[393930563,1763103032036,-500.0,0.00016785,2]
[393930564,1763103032045,-500.0,0.00016785,2]
[393930565,1763103032055,-500.0,0.00016785,2]
[393930566,1763103032065,-500.0,0.00016785,2]
[393930567,1763103032075,-500.0,0.00016785,2]
[393930568,1763103032085,-500.0,0.00016785,2]
[393930569,1763103032100,-500.0,0.00016785,2]
[393930570,1763103032110,-500.0,0.00016785,2]
[393930571,1763103032120,-500.0,0.00016785,2]
[393930572,1763103032130,-500.0,0.00016785,2]
[393930573,1763103032140,-500.0,0.00016785,2]
[393930574,1763103032150,-500.0,0.00016785,2]
[393930575,1763103032160,-500.0,0.00016785,2]
[393930576,1763103032170,-500.0,0.00016785,2]
[393930592,1763103032189,-500.0,0.00016785,2]
[393930595,1763103032500,-500.0,0.00016785,2]
[393930597,1763103032513,-500.0,0.00016785,2]
[393930599,1763103032523,-500.0,0.00016785,2]
[393930601,1763103032532,-500.0,0.00016785,2]
[393930603,1763103032541,-500.0,0.00016785,2]
[393930605,1763103032550,-500.0,0.00016785,2]
[393930607,1763103032559,-500.0,0.00016785,2]
[393930609,1763103032568,-500.0,0.00016785,2]
[393930611,1763103032578,-500.0,0.00016785,2]
[393930613,1763103032587,-500.0,0.00016785,2]
[393930615,1763103032602,-500.0,0.00016785,2]
[393930618,1763103032611,-500.0,0.00016785,2]
[393930620,1763103032620,-450.0,0.00016785,2]
[393930622,1763103032629,-500.0,0.00016785,2]
[393930623,1763103032639,-500.0,0.00016785,2]
[393930626,1763103032648,-500.0,0.00016785,2]
[393930627,1763103032658,-500.0,0.00016785,2]
[393930630,1763103032667,-500.0,0.00016785,2]
[393930632,1763103032676,-500.0,0.00016785,2]
[393930634,1763103032686,-51455.29442853,0.00016786,2]
[393930643,1763103032773,-41542.07766783,0.00016786,2]
[393930645,1763103032783,-8518.55162239,0.00016786,2]
[393930648,1763103032796,-3782.31350058,0.00016786,2]
[393930650,1763103032812,-2973.39073889,0.00016786,2]
[393930670,1763103034129,3678.3429,0.00016686,2]
[393930674,1763103039258,-3441.77014602,0.00016786,2]
[393930675,1763103039270,-14142.93600023,0.00016786,2]
[393930715,1763103039764,-481.81133,0.00016786,2]
[393930718,1763103039776,-14574.44903801,0.00016786,2]
[393930811,1763103040675,-1.7e-07,0.00016786,2]
[393930814,1763103040688,-3220.49834955,0.00016786,2]
[393930816,1763103040703,-961.0,0.00016786,2]
[393930904,1763103045954,-342.849161,0.00016786,2]
[393930905,1763103045967,-74962.25191661,0.00016786,2]
[393930906,1763103046047,-961.0,0.00016786,2]
[393930907,1763103046364,-463.2576,0.00016786,2]
[393930984,1763103058615,500.0,0.00041091,30]
[393930985,1763103064651,88.26604336,0.000166,2]
[393930986,1763103064673,411.73395664,0.000166,2]
[393930987,1763103089317,1000.0,0.00016686,2]
[393930988,1763103103322,375.71823028,0.00041091,30]
[393930993,1763103116359,1000.0,0.00015939,2]
[393930994,1763103119781,352.3136,0.00016686,2]
[393930995,1763103127887,620.0,0.00041091,30]
[393930997,1763103160274,670.85097775,0.000154,2]
[393930998,1763103160582,666.0,0.000154,2]
[393930999,1763103161040,666.0,0.000154,2]
[393931000,1763103161402,666.0,0.000154,2]
[393931001,1763103161872,500.0,0.00041091,30]
[393931002,1763103161901,666.0,0.000154,2]
[393931003,1763103162314,500.0,0.00041091,30]
[393931004,1763103162380,500.0,0.00041091,30]
[393931005,1763103162621,500.0,0.00041091,30]
[393931006,1763103162862,500.0,0.00041091,30]
[393931007,1763103163132,500.0,0.00041091,30]
[393931008,1763103165140,500.0,0.00041091,30]
[393931009,1763103165337,-500.0,0.00016773,2]
[393931010,1763103165366,-500.0,0.00016773,2]
[393931011,1763103165403,-1200.0,0.00016775,2]
[393931012,1763103165440,-151.0,0.00016776,2]
[393931013,1763103165470,-151.0,0.00016776,2]
[393931014,1763103165499,-151.0,0.00016776,2]
[393931015,1763103165529,-151.0,0.00016776,2]
[393931016,1763103165558,-151.0,0.00016776,2]
[393931017,1763103165588,-151.0,0.00016776,2]
[393931018,1763103165616,-151.0,0.00016776,2]
[393931019,1763103165645,-151.0,0.00016776,2]
[393931020,1763103165673,-151.0,0.00016776,2]
[393931021,1763103165704,-151.0,0.00016776,2]
[393931022,1763103165733,-151.0,0.00016776,2]
[393931023,1763103165764,-151.0,0.00016776,2]
[393931024,1763103165794,-151.0,0.00016776,2]
[393931025,1763103165825,-151.0,0.00016776,2]
[393931026,1763103165855,-151.0,0.00016776,2]
[393931027,1763103165884,-151.0,0.00016776,2]
[393931028,1763103165913,-151.0,0.00016776,2]
[393931029,1763103165941,-151.0,0.00016776,2]
[393931030,1763103165970,-13.01,0.00016776,2]
[393931031,1763103166051,500.0,0.00041091,30]
[393931032,1763103166256,-137.99,0.00016776,2]
[393931033,1763103166286,-151.0,0.00016776,2]
[393931034,1763103166316,-151.0,0.00016776,2]
[393931035,1763103166346,-151.0,0.00016776,2]
[393931036,1763103166375,-151.0,0.00016776,2]
[393931037,1763103166403,-631.8,0.00016785,2]
[393931038,1763103166432,-501.25017813,0.00016785,2]
[393931039,1763103166460,-580.1698994,0.00016785,2]
[393931040,1763103166487,-300.0,0.00016785,2]
[393931041,1763103166516,-500.0,0.00016785,2]
[393931042,1763103166544,-932.22984874,0.00016786,2]
[393931043,1763103166633,500.0,0.00041091,30]
[393931044,1763103166947,500.0,0.00041091,30]
[393931045,1763103167145,500.0,0.00041091,30]
[393931046,1763103167468,500.0,0.00041091,30]
[393931047,1763103167781,405.12,0.00041091,30]
[393931048,1763103167825,-1314.14060983,0.00016786,2]
[393931049,1763103168115,-310.98953763,0.00016786,2]
[393931050,1763103172118,500.0,0.00041091,30]
[393931051,1763103172360,500.0,0.00041091,30]
[393931053,1763103172590,500.0,0.00041091,30]
[393931054,1763103172826,500.0,0.00041091,30]
[393931055,1763103173062,500.0,0.00041091,30]
[393931056,1763103173304,500.0,0.00041091,30]
[393931058,1763103174441,-150.0,0.00015949,2]
[393931061,1763103177663,-5186.5705361,0.00016786,2]
[393931062,1763103177700,-1835.15370513,0.00016786,2]
[393931063,1763103177722,-6329.70258974,0.00016786,2]
[393931064,1763103183806,-792.88,0.00016686,2]
[393931065,1763103183837,-2500.0,0.00016798,2]
[393931066,1763103183869,-150.0,0.000168,2]
[393931067,1763103183932,-3114.25,0.00016833,2]
[393931070,1763103192965,-2460.55028253,0.00016833,2]
[393931071,1763103192998,-550.0,0.00016843,2]
[393931072,1763103193028,-300.0,0.00016843,2]
[393931074,1763103195094,379.49,0.00016776,2]
[393931075,1763103195939,150.0,0.00041091,30]
[393931090,1763103244199,-169.54347837,0.00016673,2]
[393931091,1763103258318,500.0,0.00041091,30]
[393931092,1763103258576,500.0,0.00041091,30]
[393931093,1763103258818,500.0,0.00041091,30]
[393931094,1763103259087,500.0,0.00041091,30]
[393931095,1763103259352,500.0,0.00041091,30]
[393931096,1763103259590,571.61561839,0.00041091,30]
[393931097,1763103261968,500.0,0.00041091,30]
[393931098,1763103262216,500.0,0.00041091,30]
[393931099,1763103262479,500.0,0.00041091,30]
[393931100,1763103262709,500.0,0.00041091,30]
[393931101,1763103263059,500.0,0.00041091,30]
[393931102,1763103263436,553.71907697,0.00041091,30]
[393931103,1763103265408,500.0,0.00041091,30]
[393931104,1763103265654,500.0,0.00041091,30]
[393931105,1763103265917,500.0,0.00041091,30]
[393931106,1763103266211,500.0,0.00041091,30]
[393931107,1763103266463,500.0,0.00041091,30]
[393931108,1763103266741,500.0,0.00041091,30]
[393931110,1763103332422,237.55,0.00015953,2]
[393931111,1763103345009,158.76763575,0.00016655,2]
[393931112,1763103383551,168.0,0.00016601,2]
[393931114,1763103394714,-330.45652163,0.00016673,2]
[393931115,1763103394738,-38.73645025,0.000167,2]
[393931117,1763103397690,-190.4422575,0.000167,2]
[393931120,1763103400035,-170.37608082,0.000167,2]
[393931121,1763103405754,-268.89354039,0.00016673,2]
[393931122,1763103406623,294.28789125,0.00041093,30]
[393931123,1763103408119,-231.10645961,0.00016673,2]
[393931124,1763103408142,-248.44963498,0.000167,2]
[393931125,1763103410328,500.0,0.00041093,30]
[393931126,1763103410692,500.0,0.00041093,30]
[393931127,1763103410930,500.0,0.00041093,30]
[393931128,1763103411183,500.0,0.00041093,30]
[393931129,1763103411450,500.0,0.00041093,30]
[393931130,1763103411687,500.0,0.00041093,30]
[393931132,1763103414552,500.0,0.00041093,30]
[393931133,1763103414811,500.0,0.00041093,30]
[393931134,1763103415052,500.0,0.00041093,30]
[393931135,1763103415301,507.04235993,0.00041093,30]
[393931138,1763103418278,4459.84022606,0.00016655,2]
[393931139,1763103421131,500.0,0.00041093,30]
[393931140,1763103421381,500.0,0.00041093,30]
[393931141,1763103421651,500.0,0.00041093,30]
[393931142,1763103421925,500.0,0.00041093,30]
[393931143,1763103422175,500.0,0.00041093,30]
[393931144,1763103422441,500.0,0.00041093,30]
[393931145,1763103424480,500.0,0.00041093,30]
[393931146,1763103424724,500.0,0.00041093,30]
[393931147,1763103424963,500.0,0.00041093,30]
[393931148,1763103425429,500.0,0.00041093,30]
[393931149,1763103425500,560.90176052,0.00041093,30]
[393931150,1763103427598,275.30739932,0.00041093,30]
[393931152,1763103433202,4975.85213819,0.00015933,2]
[393931153,1763103433227,10000.01,0.00015933,2]
[393931154,1763103433249,10000.01,0.00015933,2]
[393931155,1763103433272,10000.01,0.00015933,2]
[393931156,1763103433296,4655.04786181,0.00015933,2]
[393931157,1763103437840,5086.3520121,0.00016655,2]
[393931158,1763103439547,500.0,0.00041093,30]
[393931159,1763103439785,595.40245339,0.00041093,30]
[393931163,1763103495868,-250.0,0.00015902,2]
[393931164,1763103495903,-818.9105401,0.00016655,2]
[393931165,1763103495937,-395.82,0.00016678,2]
[393931166,1763103495971,-247.00341645,0.000167,2]
[393931167,1763103496002,-300.0,0.00016741,2]
[393931168,1763103496034,-1086.0,0.00016742,2]
[393931169,1763103496065,-300.0,0.00016742,2]
[393931170,1763103496097,-550.0,0.00016742,2]
[393931171,1763103496128,-904.5420869,0.00016742,2]
[393931172,1763103496303,-295.4579131,0.00016742,2]
[393931173,1763103496337,-500.0,0.00016743,2]
[393931174,1763103496370,-500.0,0.00016743,2]
[393931175,1763103496404,-500.0,0.00016743,2]
[393931176,1763103496439,-500.0,0.00016743,2]
[393931177,1763103496470,-500.0,0.00016743,2]
[393931178,1763103496502,-500.0,0.00016743,2]
[393931179,1763103496532,-500.0,0.00016743,2]
[393931180,1763103496563,-500.0,0.00016743,2]
[393931181,1763103496595,-500.0,0.00016743,2]
[393931182,1763103496704,-500.0,0.00016743,2]
[393931183,1763103496737,-542.97350006,0.00016743,2]
[393931184,1763103496770,-500.0,0.00016743,2]
[393931185,1763103496804,-500.0,0.00016743,2]
[393931186,1763103496837,-500.0,0.00016743,2]
[393931187,1763103496874,-500.0,0.00016743,2]
[393931188,1763103496908,-500.0,0.00016743,2]
[393931189,1763103496943,-500.0,0.00016743,2]
[393931190,1763103496977,-500.0,0.00016743,2]
[393931191,1763103497010,-414.06299988,0.00016743,2]
[393931192,1763103497068,-85.93700012,0.00016743,2]
[393931193,1763103497568,-151.01953592,0.00016744,2]
[393931194,1763103501032,288.3246715,0.00016743,2]
[393931196,1763103505270,-221.9370058,0.00016744,2]
[393931197,1763103508030,-155.5003736,0.00016744,2]
[393931198,1763103510308,-166.66,0.00016744,2]
[393931199,1763103512540,-451.13601358,0.00016744,2]
[393931201,1763103516248,-300.0,0.00016744,2]
[393931202,1763103518087,-281.75432382,0.00016744,2]
[393931203,1763103519608,-300.0,0.00016744,2]
[393931204,1763103522134,-305.20999545,0.00016744,2]
[393931205,1763103525377,500.0,0.00016743,2]
[393931206,1763103526600,-341.20572281,0.00016744,2]
[393931208,1763103532994,-416.04224315,0.00016744,2]
[393931209,1763103536211,-396.27127505,0.00016744,2]
[393931211,1763103541444,300.0,0.00016743,2]
[393931212,1763103541544,-396.97728526,0.00016744,2]
[393931214,1763103544708,-167.70362033,0.00016744,2]
[393931215,1763103548511,-288.91064111,0.00016744,2]
[393931217,1763103550352,-220.44000221,0.00016744,2]
[393931221,1763103554044,-290.74405655,0.00016744,2]
[393931222,1763103555067,161.0,0.000164,2]
[393931223,1763103555849,299.46116931,0.000164,2]
[393931224,1763103558330,-170.73509499,0.00016744,2]
[393931225,1763103562950,-159.85913901,0.00016744,2]